fUST/lending_fUST_20250814
["ID","MTS","AMOUNT","RATE_DAILY","PERIOD"]
[379172056,1755175857908,-151.0,0.00017534,2]
[379172057,1755175857917,-493.12,0.00017534,2]
[379172058,1755175857927,-855.88,0.00017534,2]
[379172059,1755175857936,-460.0,0.00017534,2]
[379172060,1755175857945,-536.21999571,0.00017534,2]
[379172061,1755175857954,-855.38,0.00017534,2]
[379172062,1755175857963,-842.57,0.00017534,2]
[379172063,1755175857973,-1168.6,0.00017534,2]
[379172064,1755175857982,-460.0,0.00017534,2]
[379172065,1755175857991,-1943.05,0.00017534,2]
[379172066,1755175858001,-460.0,0.00017534,2]
[379172067,1755175858010,-460.0,0.00017534,2]
[379172068,1755175858019,-4780.38,0.00017534,2]
[379172069,1755175858031,-1435.73,0.00017534,2]
[379172070,1755175858040,-2554.0,0.00017534,2]
[379172071,1755175858049,-601.06446597,0.00017534,2]
[379172072,1755175858059,-460.0,0.00017534,2]
[379172073,1755175858069,-787.38,0.00017534,2]
[379172074,1755175858079,-681.21,0.00017534,2]
[379172075,1755175858088,-1250.08,0.00017534,2]
[379172076,1755175858097,-1116.97,0.00017534,2]
[379172077,1755175858107,-917.72,0.00017534,2]
[379172078,1755175858116,-730.83,0.00017534,2]
[379172079,1755175858126,-792.1,0.00017534,2]
[379172080,1755175858135,-536.0,0.00017534,2]
[379172081,1755175858145,-460.0,0.00017534,2]
[379172082,1755175858154,-296.84673891,0.00017534,2]
[379172083,1755175858163,-476.49,0.00017534,2]
[379172084,1755175858172,-460.0,0.00017534,2]
[379172085,1755175858181,-2103.47,0.00017534,2]
[379172086,1755175858191,-460.0,0.00017534,2]
[379172087,1755175858200,-460.0,0.00017534,2]
[379172088,1755175858210,-878.48,0.00017534,2]
[379172089,1755175858220,-1480.56,0.00017534,2]
[379172090,1755175858229,-460.0,0.00017534,2]
[379172091,1755175858239,-1865.21,0.00017534,2]
[379172092,1755175858253,-662.76,0.00017534,2]
[379172093,1755175858263,-3052.16,0.00017534,2]
[379172094,1755175858275,-983.73,0.00017534,2]
[379172095,1755175858284,-460.0,0.00017534,2]
[379172096,1755175858294,-460.0,0.00017534,2]
[379172097,1755175858303,-2057.02,0.00017534,2]
[379172098,1755175858313,-460.0,0.00017534,2]
[379172099,1755175858325,-460.0,0.00017534,2]
[379172100,1755175858334,-829.79,0.00017534,2]
[379172101,1755175858344,-485.87,0.00017534,2]
[379172102,1755175858353,-664.23,0.00017534,2]
[379172103,1755175858363,-11382.43,0.00017534,2]
[379172104,1755175858372,-460.0,0.00017534,2]
[379172105,1755175858381,-504.47,0.00017534,2]
[379172106,1755175858390,-1500.93,0.00017534,2]
[379172107,1755175858399,-2175.76,0.00017534,2]
[379172108,1755175858409,-460.0,0.00017534,2]
[379172109,1755175858418,-1294.6,0.00017534,2]
[379172110,1755175858426,-513.91,0.00017534,2]
[379172111,1755175858436,-832.86,0.00017534,2]
[379172112,1755175858445,-613.61,0.00017534,2]
[379172113,1755175858454,-465.68396685,0.00017534,2]
[379172114,1755175858464,-486.92,0.00017534,2]
[379172115,1755175858473,-1551.6,0.00017534,2]
[379172116,1755175858482,-1994.22,0.00017534,2]
[379172117,1755175858492,-882.03,0.00017534,2]
[379172118,1755175858502,-460.0,0.00017534,2]
[379172119,1755175858511,-460.0,0.00017534,2]
[379172120,1755175858520,-460.0,0.00017534,2]
[379172121,1755175858533,-460.0,0.00017534,2]
[379172122,1755175858543,-941.45,0.00017534,2]
[379172123,1755175858552,-1175.46,0.00017534,2]
[379172124,1755175858562,-2242.55,0.00017534,2]
[379172125,1755175858571,-1055.55,0.00017534,2]
[379172126,1755175858582,-460.0,0.00017534,2]
[379172127,1755175858592,-544.54,0.00017534,2]
[379172128,1755175858602,-7510.2,0.00017534,2]
[379172129,1755175858612,-844.15,0.00017534,2]
[379172130,1755175858622,-460.0,0.00017534,2]
[379172131,1755175858631,-460.0,0.00017534,2]
[379172132,1755175858641,-2875.86,0.00017534,2]
[379172133,1755175858651,-975.64,0.00017534,2]
[379172134,1755175858661,-573.82,0.00017534,2]
[379172135,1755175858671,-460.0,0.00017534,2]
[379172136,1755175858680,-460.0,0.00017534,2]
[379172137,1755175858689,-576.43,0.00017534,2]
[379172138,1755175858699,-1050.32,0.00017534,2]
[379172139,1755175858708,-1257.29,0.00017534,2]
[379172140,1755175858718,-460.0,0.00017534,2]
[379172141,1755175858727,-460.0,0.00017534,2]
[379172142,1755175858737,-2320.64,0.00017534,2]
[379172143,1755175858746,-6741.69804978,0.00017534,2]
[379172144,1755175858784,-430.34195022,0.00017534,2]
[379172145,1755175858794,-460.0,0.00017534,2]
[379172146,1755175858803,-650.96,0.00017534,2]
[379172147,1755175858813,-1112.56,0.00017534,2]
[379172148,1755175858822,-515.21,0.00017534,2]
[379172149,1755175858832,-1203.72,0.00017534,2]
[379172150,1755175858842,-460.0,0.00017534,2]
[379172151,1755175858851,-723.96,0.00017547,2]
[379172152,1755175858861,-408.0,0.00017553,2]
[379172153,1755175858871,-418.941,0.00017553,2]
[379172154,1755175858880,-636.0,0.00017553,2]
[379172155,1755175858890,-972.0,0.00017553,2]
[379172156,1755175858899,-2151.0,0.00017553,2]
[379172157,1755175858908,-250.0,0.00017564,2]
[379172158,1755175858917,-1005.2357073,0.00017568,2]
[379172159,1755175858927,-1500.0,0.00017568,2]
[379172160,1755175858936,-1500.0,0.00017568,2]
[379172161,1755175858946,-1500.0,0.00017568,2]
[379172162,1755175858956,-2149.93703373,0.0001768,2]
[379172163,1755175858965,-1200.18,0.00017698,3]
[379172164,1755175858975,-151.0,0.00017707,2]
[379172165,1755175858984,-151.0,0.00017707,2]
[379172166,1755175858994,-1050.0,0.00017762,2]
[379172167,1755175859003,-151.0,0.00017768,2]
[379172168,1755175859013,-151.0,0.00017768,2]
[379172169,1755175859024,-3816.6,0.00017798,3]
[379172170,1755175859034,-1908.3,0.00017798,3]
[379172171,1755175859044,-954.14,0.00017798,3]
[379172172,1755175859054,-477.08,0.00017798,3]
[379172173,1755175859064,-233.625175,0.00017806,2]
[379172174,1755175859075,-233.625175,0.00017806,2]
[379172175,1755175859085,-151.0,0.00017806,2]
[379172176,1755175859095,-151.0,0.00017806,2]
[379172177,1755175859105,-151.0,0.00017806,2]
[379172178,1755175859115,-151.0,0.00017806,2]
[379172179,1755175859125,-255.366133,0.00017806,2]
[379172180,1755175859135,-255.366133,0.00017806,2]
[379172181,1755175859146,-536.0,0.00017808,2]
[379172182,1755175859156,-195.420939,0.00017808,2]
[379172183,1755175859166,-195.420936,0.00017808,2]
[379172184,1755175859176,-151.0,0.00017808,2]
[379172185,1755175859186,-151.0,0.00017808,2]
[379172186,1755175859196,-151.0,0.00017808,2]
[379172187,1755175859207,-151.0,0.00017808,2]
[379172188,1755175859218,-151.0,0.00017808,2]
[379172189,1755175859228,-151.0,0.00017808,2]
[379172190,1755175859239,-151.0,0.00017808,2]
[379172191,1755175859252,-197.50522,0.00017808,2]
[379172192,1755175859262,-197.50522,0.00017808,2]
[379172193,1755175859272,-233.625175,0.00017808,2]
[379172194,1755175859283,-233.625175,0.00017808,2]
[379172195,1755175859294,-151.0,0.00017808,2]
[379172196,1755175859304,-151.0,0.00017808,2]
[379172197,1755175859314,-151.0,0.00017808,2]
[379172198,1755175859324,-151.0,0.00017808,2]
[379172199,1755175859334,-151.0,0.00017808,2]
[379172200,1755175859344,-167.93609,0.00017808,2]
[379172201,1755175859354,-151.0,0.00017808,2]
[379172202,1755175859364,-151.0,0.00017808,2]
[379172203,1755175859374,-151.0,0.00017808,2]
[379172204,1755175859384,-327.780253,0.00017808,2]
[379172205,1755175859394,-327.780253,0.00017808,2]
[379172206,1755175859404,-151.0,0.00017808,2]
[379172207,1755175859414,-151.0,0.00017808,2]
[379172208,1755175859424,-151.0,0.00017808,2]
[379172209,1755175859433,-476.6,0.00017808,2]
[379172210,1755175859443,-603.15,0.00017808,2]
[379172211,1755175859453,-1189.22,0.00017808,2]
[379172212,1755175859463,-460.0,0.00017808,2]
[379172213,1755175859473,-255.366133,0.00017808,2]
[379172214,1755175859483,-255.366133,0.00017808,2]
[379172215,1755175859494,-460.0,0.00017808,2]
[379172216,1755175859503,-460.0,0.00017808,2]
[379172217,1755175859513,-488.2,0.00017808,2]
[379172218,1755175859523,-460.0,0.00017808,2]
[379172219,1755175859535,-460.0,0.00017808,2]
[379172220,1755175859545,-602.72,0.00017808,2]
[379172221,1755175859555,-327.55273355,0.00017808,2]
[379172222,1755175859566,-473.51,0.00017808,2]
[379172223,1755175859575,-507.05,0.00017808,2]
[379172224,1755175859585,-151.0,0.00017808,2]
[379172225,1755175859595,-557.17,0.00017808,2]
[379172226,1755175859605,-151.0,0.00017808,2]
[379172227,1755175859615,-460.0,0.00017808,2]
[379172228,1755175859625,-727.81,0.00017808,2]
[379172229,1755175859635,-151.0,0.00017808,2]
[379172230,1755175859645,-460.0,0.00017808,2]
[379172231,1755175859656,-151.0,0.00017808,2]
[379172232,1755175859665,-460.0,0.00017808,2]
[379172233,1755175859676,-958.62,0.00017808,2]
[379172234,1755175859686,-1253.76,0.00017808,2]
[379172235,1755175859696,-460.0,0.00017808,2]
[379172236,1755175859706,-460.0,0.00017808,2]
[379172237,1755175859716,-483.44,0.00017808,2]
[379172238,1755175859726,-460.0,0.00017808,2]
[379172239,1755175859736,-460.0,0.00017808,2]
[379172240,1755175859746,-460.0,0.00017808,2]
[379172241,1755175859756,-550.01,0.00017808,2]
[379172242,1755175859765,-610.13,0.00017808,2]
[379172243,1755175859777,-460.0,0.00017808,2]
[379172244,1755175859787,-478.96,0.00017808,2]
[379172245,1755175859797,-881.27,0.00017808,2]
[379172246,1755175859807,-460.0,0.00017808,2]
[379172247,1755175859817,-460.0,0.00017808,2]
[379172248,1755175859826,-513.57,0.00017808,2]
[379172249,1755175859836,-460.0,0.00017808,2]
[379172250,1755175859845,-460.0,0.00017808,2]
[379172251,1755175859855,-509.79432312,0.00017808,2]
[379172252,1755175859865,-586.54,0.00017808,2]
[379172253,1755175859875,-716.01,0.00017808,2]
[379172254,1755175859884,-1743.59,0.00017808,2]
[379172255,1755175859894,-1404.59,0.00017808,2]
[379172256,1755175859903,-460.0,0.00017808,2]
[379172257,1755175859913,-460.0,0.00017808,2]
[379172258,1755175859923,-460.0,0.00017808,2]
[379172259,1755175859932,-460.0,0.00017808,2]
[379172260,1755175859942,-622.26,0.00017808,2]
[379172261,1755175859951,-460.0,0.00017808,2]
[379172262,1755175859961,-460.0,0.00017808,2]
[379172263,1755175859972,-460.0,0.00017808,2]
[379172264,1755175859981,-460.0,0.00017808,2]
[379172265,1755175859992,-460.0,0.00017808,2]
[379172266,1755175860003,-460.0,0.00017808,2]
[379172267,1755175860013,-460.0,0.00017808,2]
[379172268,1755175860025,-460.0,0.00017808,2]
[379172269,1755175860035,-460.0,0.00017808,2]
[379172270,1755175860045,-460.0,0.00017808,2]
[379172271,1755175860056,-589.27,0.00017808,2]
[379172272,1755175860066,-300.05737599,0.00017808,2]
[379172273,1755175860077,-460.0,0.00017808,2]
[379172274,1755175860088,-814.08,0.00017808,2]
[379172275,1755175860098,-612.93,0.00017808,2]
[379172276,1755175860110,-460.0,0.00017808,2]
[379172277,1755175860120,-696.45,0.00017808,2]
[379172278,1755175860131,-460.0,0.00017808,2]
[379172279,1755175860141,-1058.28,0.00017808,2]
[379172280,1755175860151,-460.0,0.00017808,2]
[379172281,1755175860161,-460.0,0.00017808,2]
[379172282,1755175860171,-1203.36,0.00017808,2]
[379172283,1755175860181,-460.0,0.00017808,2]
[379172284,1755175860191,-1387.46,0.00017808,2]
[379172285,1755175860202,-1003.46,0.00017808,2]
[379172286,1755175860212,-460.0,0.00017808,2]
[379172287,1755175860222,-460.0,0.00017808,2]
[379172288,1755175860233,-460.0,0.00017808,2]
[379172289,1755175860246,-658.8,0.00017808,2]
[379172290,1755175860257,-659.15,0.00017808,2]
[379172291,1755175860267,-3602.78,0.00017808,2]
[379172292,1755175860280,-995.23,0.00017808,2]
[379172293,1755175860291,-460.0,0.00017808,2]
[379172294,1755175860301,-460.0,0.00017808,2]
[379172295,1755175860311,-460.0,0.00017808,2]
[379172296,1755175860323,-460.0,0.00017808,2]
[379172297,1755175860334,-460.0,0.00017808,2]
[379172298,1755175860344,-460.0,0.00017808,2]
[379172299,1755175860354,-649.85,0.00017808,2]
[379172300,1755175860363,-506.73,0.00017808,2]
[379172301,1755175860373,-460.0,0.00017808,2]
[379172302,1755175860383,-460.0,0.00017808,2]
[379172303,1755175860393,-460.0,0.00017808,2]
[379172304,1755175860402,-460.0,0.00017808,2]
[379172305,1755175860413,-460.0,0.00017808,2]
[379172306,1755175860423,-460.0,0.00017808,2]
[379172307,1755175860432,-460.0,0.00017808,2]
[379172308,1755175860442,-815.02,0.00017808,2]
[379172309,1755175860451,-875.25,0.00017808,2]
[379172310,1755175860461,-460.0,0.00017808,2]
[379172311,1755175860471,-787.23,0.00017808,2]
[379172312,1755175860481,-478.1,0.00017808,2]
[379172313,1755175860491,-1108.44,0.00017808,2]
[379172314,1755175860501,-803.15,0.00017808,2]
[379172315,1755175860511,-699.67,0.00017808,2]
[379172316,1755175860521,-460.0,0.00017808,2]
[379172317,1755175860533,-460.0,0.00017808,2]
[379172318,1755175860544,-865.62,0.00017808,2]
[379172319,1755175860553,-460.0,0.00017808,2]
[379172320,1755175860563,-460.0,0.00017808,2]
[379172321,1755175860573,-1815.51,0.00017808,2]
[379172322,1755175860583,-460.0,0.00017808,2]
[379172323,1755175860592,-151.0,0.00017808,2]
[379172324,1755175860602,-49.34182594,0.00017808,2]
[379172325,1755175860919,-500.0,0.00016337,2]
[379172326,1755175860929,-500.0,0.00016337,2]
[379172327,1755175860939,-477.28775672,0.00016337,2]
[379172328,1755175860949,-500.0,0.00016337,2]
[379172329,1755175860959,-500.0,0.00016337,2]
[379172330,1755175860969,-446.29433377,0.00016337,2]
[379172331,1755175860978,-252.61060333,0.00016338,2]
[379172332,1755175860988,-460.0,0.00016438,2]
[379172333,1755175860998,-460.0,0.00016712,2]
[379172334,1755175861007,-330.067231,0.00016712,2]
[379172335,1755175861017,-460.0,0.00016986,2]
[379172336,1755175861028,-330.067231,0.00016986,2]
[379172337,1755175861039,-460.0,0.0001726,2]
[379172338,1755175861048,-460.0,0.00017534,2]
[379172339,1755175861058,-443.77817406,0.00017808,2]
[379172340,1755175861069,-855.88,0.00017808,2]
[379172341,1755175861078,-460.0,0.00017808,2]
[379172342,1755175861088,-855.38,0.00017808,2]
[379172343,1755175861098,-842.57,0.00017808,2]
[379172344,1755175861108,-1168.6,0.00017808,2]
[379172345,1755175861118,-460.0,0.00017808,2]
[379172346,1755175861128,-1943.05,0.00017808,2]
[379172347,1755175861138,-460.0,0.00017808,2]
[379172348,1755175861147,-460.0,0.00017808,2]
[379172349,1755175861156,-4780.38,0.00017808,2]
[379172350,1755175861166,-1435.73,0.00017808,2]
[379172351,1755175861175,-2554.0,0.00017808,2]
[379172352,1755175861185,-460.0,0.00017808,2]
[379172353,1755175861194,-787.38,0.00017808,2]
[379172354,1755175861204,-681.21,0.00017808,2]
[379172355,1755175861217,-1250.08,0.00017808,2]
[379172356,1755175861227,-1116.97,0.00017808,2]
[379172357,1755175861237,-917.72,0.00017808,2]
[379172358,1755175861249,-730.83,0.00017808,2]
[379172359,1755175861259,-792.1,0.00017808,2]
[379172360,1755175861270,-460.0,0.00017808,2]
[379172361,1755175861283,-476.49,0.00017808,2]
[379172362,1755175861294,-460.0,0.00017808,2]
[379172363,1755175861304,-2103.47,0.00017808,2]
[379172364,1755175861314,-460.0,0.00017808,2]
[379172365,1755175861324,-460.0,0.00017808,2]
[379172366,1755175861335,-878.48,0.00017808,2]
[379172367,1755175861345,-1480.56,0.00017808,2]
[379172368,1755175861355,-460.0,0.00017808,2]
[379172369,1755175861365,-1865.21,0.00017808,2]
[379172370,1755175861374,-662.76,0.00017808,2]
[379172371,1755175861384,-3052.16,0.00017808,2]
[379172372,1755175861393,-983.73,0.00017808,2]
[379172373,1755175861402,-460.0,0.00017808,2]
[379172374,1755175861412,-460.0,0.00017808,2]
[379172375,1755175861421,-2057.02,0.00017808,2]
[379172376,1755175861430,-460.0,0.00017808,2]
[379172377,1755175861440,-460.0,0.00017808,2]
[379172378,1755175861449,-829.79,0.00017808,2]
[379172379,1755175861458,-485.87,0.00017808,2]
[379172380,1755175861468,-664.23,0.00017808,2]
[379172381,1755175861477,-11382.43,0.00017808,2]
[379172382,1755175861487,-460.0,0.00017808,2]
[379172383,1755175861496,-504.47,0.00017808,2]
[379172384,1755175861505,-1500.93,0.00017808,2]
[379172385,1755175861515,-2175.76,0.00017808,2]
[379172386,1755175861526,-460.0,0.00017808,2]
[379172387,1755175861535,-513.91,0.00017808,2]
[379172388,1755175861545,-832.86,0.00017808,2]
[379172389,1755175861554,-613.61,0.00017808,2]
[379172390,1755175861563,-1294.6,0.00017808,2]
[379172391,1755175861573,-486.92,0.00017808,2]
[379172392,1755175861582,-1551.6,0.00017808,2]
[379172393,1755175861592,-561.15467012,0.00017808,2]
[379172394,1755175864661,-464.18,0.00017808,2]
[379172395,1755175864673,-968.88532988,0.00017808,2]
[379172396,1755175864822,-882.03,0.00017808,2]
[379172397,1755175864833,-460.0,0.00017808,2]
[379172398,1755175864843,-460.0,0.00017808,2]
[379172399,1755175864853,-460.0,0.00017808,2]
[379172400,1755175864862,-460.0,0.00017808,2]
[379172401,1755175864871,-941.45,0.00017808,2]
[379172402,1755175864881,-1175.46,0.00017808,2]
[379172403,1755175864891,-2242.55,0.00017808,2]
[379172404,1755175864901,-1055.55,0.00017808,2]
[379172405,1755175864910,-460.0,0.00017808,2]
[379172406,1755175864920,-544.54,0.00017808,2]
[379172407,1755175864930,-7510.2,0.00017808,2]
[379172408,1755175864939,-844.15,0.00017808,2]
[379172409,1755175864949,-460.0,0.00017808,2]
[379172410,1755175864959,-460.0,0.00017808,2]
[379172411,1755175864968,-2875.86,0.00017808,2]
[379172412,1755175864978,-975.64,0.00017808,2]
[379172413,1755175864987,-573.82,0.00017808,2]
[379172414,1755175864996,-460.0,0.00017808,2]
[379172415,1755175865006,-576.43,0.00017808,2]
[379172416,1755175865016,-1050.32,0.00017808,2]
[379172417,1755175865025,-1257.29,0.00017808,2]
[379172418,1755175865036,-460.0,0.00017808,2]
[379172419,1755175865045,-460.0,0.00017808,2]
[379172420,1755175865055,-460.0,0.00017808,2]
[379172421,1755175865064,-2320.64,0.00017808,2]
[379172422,1755175865074,-7172.04,0.00017808,2]
[379172423,1755175865084,-460.0,0.00017808,2]
[379172424,1755175865094,-650.96,0.00017808,2]
[379172425,1755175865104,-1112.56,0.00017808,2]
[379172426,1755175865114,-515.21,0.00017808,2]
[379172427,1755175865124,-1203.72,0.00017808,2]
[379172428,1755175865133,-460.0,0.00017808,2]
[379172429,1755175865143,-723.96,0.00017821,2]
[379172430,1755175865153,-250.0,0.00017851,2]
[379172431,1755175865163,-206.379,0.00017851,2]
[379172432,1755175865173,-220.795,0.00017851,2]
[379172433,1755175865182,-250.0,0.00017851,2]
[379172434,1755175865192,-246.409,0.00017851,2]
[379172435,1755175865202,-261.13,0.00017851,2]
[379172436,1755175865212,-219.024,0.00017851,2]
[379172437,1755175865224,-420.0,0.00017855,2]
[379172438,1755175865235,-420.0,0.00017855,2]
[379172439,1755175865246,-151.0,0.000179,2]
[379172440,1755175865258,-151.0,0.000179,2]
[379172441,1755175865268,-441.0,0.00017923,2]
[379172442,1755175865279,-1680.0,0.00017944,2]
[379172443,1755175865290,-1680.0,0.00017952,2]
[379172444,1755175865301,-461.9529908,0.00017969,3]
[379172445,1755175865310,-528.19044044,0.00017969,3]
[379172446,1755175865320,-215.59581046,0.00017969,3]
[379172447,1755175865330,-151.0,0.00017981,2]
[379172448,1755175865339,-151.0,0.00017981,2]
[379172449,1755175865350,-151.0,0.00017981,2]
[379172450,1755175865361,-151.0,0.00017981,2]
[379172451,1755175865370,-151.0,0.00017981,2]
[379172452,1755175865380,-160.0,0.00017981,2]
[379172453,1755175865390,-225.14748105,0.00018,2]
[379172454,1755175865400,-29382.4741874,0.00018,2]
[379172455,1755175865411,-84254.34672405,0.00018,2]
[379172456,1755175865420,-4552.7815589,0.00018,2]
[379172457,1755175865430,-151.419554,0.00018,2]
[379172458,1755175865440,-151.0,0.00018,2]
[379172459,1755175865449,-151.0,0.00018,2]
[379172460,1755175865459,-151.0,0.00018,2]
[379172461,1755175865469,-151.0,0.00018,2]
[379172462,1755175865479,-197.50522,0.00018,2]
[379172463,1755175865488,-197.50522,0.00018,2]
[379172464,1755175865498,-233.625175,0.00018,2]
[379172465,1755175865508,-233.625175,0.00018,2]
[379172466,1755175865517,-151.0,0.00018,2]
[379172467,1755175865530,-151.0,0.00018,2]
[379172468,1755175865540,-151.0,0.00018,2]
[379172469,1755175865550,-169.733387,0.00018,2]
[379172470,1755175865559,-151.0,0.00018,2]
[379172471,1755175865568,-159.454687,0.00018,2]
[379172472,1755175865578,-151.0,0.00018,2]
[379172473,1755175865587,-151.0,0.00018,2]
[379172474,1755175865597,-327.780253,0.00018,2]
[379172475,1755175865606,-327.780253,0.00018,2]
[379172476,1755175865616,-151.0,0.00018,2]
[379172477,1755175865626,-151.0,0.00018,2]
[379172478,1755175865635,-151.0,0.00018,2]
[379172479,1755175865645,-25236.73978551,0.00018,2]
[379172480,1755175865654,-255.366133,0.00018,2]
[379172481,1755175865664,-255.366133,0.00018,2]
[379172482,1755175865673,-151.0,0.00018,2]
[379172483,1755175865683,-151.0,0.00018,2]
[379172484,1755175865692,-151.0,0.00018,2]
[379172485,1755175865702,-151.0,0.00018,2]
[379172486,1755175865711,-151.0,0.00018,2]
[379172487,1755175865721,-1000.0,0.00018,2]
[379172488,1755175865730,-7228.28325589,0.00018038,2]
[379172489,1755175865740,-151.0,0.00018059,2]
[379172490,1755175865749,-151.0,0.00018059,2]
[379172491,1755175865758,-151.0,0.00018059,2]
[379172492,1755175865768,-1500.0,0.00018068,2]
[379172493,1755175865780,-1002.72201185,0.00018068,2]
[379172494,1755175865791,-1500.0,0.00018068,2]
[379172495,1755175865801,-722.84225544,0.00018068,2]
[379172496,1755175865811,-1500.0,0.00018068,2]
[379172497,1755175865820,-1500.0,0.00018068,2]
[379172498,1755175865829,-152.47978686,0.00018068,2]
[379172499,1755175865839,-1500.0,0.00018068,2]
[379172500,1755175865848,-1500.0,0.00018068,2]
[379172501,1755175865857,-1037.82239804,0.00018068,2]
[379172502,1755175865867,-1500.0,0.00018068,2]
[379172503,1755175865877,-1500.0,0.00018068,2]
[379172504,1755175865887,-500.0,0.00018073,2]
[379172505,1755175865896,-500.0,0.00018073,2]
[379172506,1755175865906,-500.0,0.00018073,2]
[379172507,1755175865915,-500.0,0.00018073,2]
[379172508,1755175865925,-501.33549503,0.00018073,2]
[379172509,1755175865935,-500.0,0.00018073,2]
[379172510,1755175865945,-500.0,0.00018073,2]
[379172511,1755175865955,-500.0,0.00018073,2]
[379172512,1755175865964,-500.0,0.00018073,2]
[379172513,1755175865974,-500.0,0.00018073,2]
[379172514,1755175865983,-500.0,0.00018073,2]
[379172515,1755175865992,-502.05994433,0.00018073,2]
[379172516,1755175866002,-500.0,0.00018073,2]
[379172517,1755175866011,-500.0,0.00018073,2]
[379172518,1755175866021,-500.0,0.00018073,2]
[379172519,1755175866034,-151.925067,0.00018073,2]
[379172520,1755175866044,-536.0,0.00018082,2]
[379172521,1755175866054,-151.0,0.00018082,2]
[379172522,1755175866063,-151.0,0.00018082,2]
[379172523,1755175866073,-151.0,0.00018082,2]
[379172524,1755175866083,-151.554634,0.00018082,2]
[379172525,1755175866093,-151.0,0.00018082,2]
[379172526,1755175866102,-283.134269,0.00018082,2]
[379172527,1755175866112,-197.50522,0.00018082,2]
[379172528,1755175866122,-197.50522,0.00018082,2]
[379172529,1755175866132,-233.625175,0.00018082,2]
[379172530,1755175866142,-233.625175,0.00018082,2]
[379172531,1755175866152,-300.578606,0.00018082,2]
[379172532,1755175866162,-151.0,0.00018082,2]
[379172533,1755175866172,-151.0,0.00018082,2]
[379172534,1755175866181,-151.0,0.00018082,2]
[379172535,1755175866190,-151.0,0.00018082,2]
[379172536,1755175866200,-151.0,0.00018082,2]
[379172537,1755175866210,-327.780253,0.00018082,2]
[379172538,1755175866220,-327.780253,0.00018082,2]
[379172539,1755175866230,-151.0,0.00018082,2]
[379172540,1755175866246,-151.0,0.00018082,2]
[379172541,1755175866268,-206.714151,0.00018082,2]
[379172542,1755175866293,-476.6,0.00018082,2]
[379172543,1755175866303,-603.15,0.00018082,2]
[379172544,1755175866313,-1189.22,0.00018082,2]
[379172545,1755175866323,-344.32078004,0.00018082,2]
[379172546,1755175866332,-255.366133,0.00018082,2]
[379172547,1755175866342,-255.366133,0.00018082,2]
[379172548,1755175866352,-460.0,0.00018082,2]
[379172549,1755175866362,-460.0,0.00018082,2]
[379172550,1755175866374,-488.2,0.00018082,2]
[379172551,1755175866384,-460.0,0.00018082,2]
[379172552,1755175866393,-460.0,0.00018082,2]
[379172553,1755175866403,-602.72,0.00018082,2]
[379172554,1755175866412,-473.51,0.00018082,2]
[379172555,1755175866422,-507.05,0.00018082,2]